fUST/lending_fUST_20260226
["ID","MTS","AMOUNT","RATE_DAILY","PERIOD"]
[406702217,1772102831854,-1367.68161104,0.00012324,2]
[406702218,1772102831889,-582.84232346,0.00012324,2]
[406702219,1772102831922,-500.0,0.00012324,2]
[406702220,1772102831956,-582.84232346,0.00012324,2]
[406702221,1772102831989,-500.0,0.00012324,2]
[406702222,1772102832021,-500.0,0.00012324,2]
[406702223,1772102832052,-582.84232346,0.00012324,2]
[406702224,1772102832085,-500.0,0.00012324,2]
[406702225,1772102832119,-582.84232346,0.00012324,2]
[406702226,1772102832152,-500.0,0.00012324,2]
[406702227,1772102832185,-582.84232346,0.00012324,2]
[406702228,1772102832218,-500.0,0.00012324,2]
[406702229,1772102832250,-582.84232346,0.00012324,2]
[406702230,1772102832285,-582.84232346,0.00012324,2]
[406702231,1772102832320,-582.84232346,0.00012324,2]
[406702232,1772102832353,-582.84232346,0.00012324,2]
[406702233,1772102832388,-1367.68161104,0.00012324,2]
[406702234,1772102832422,-500.0,0.00012324,2]
[406702235,1772102832458,-1264.10075984,0.00012324,2]
[406702236,1772102832493,-1264.10075984,0.00012324,2]
[406702237,1772102832529,-1264.10075984,0.00012324,2]
[406702238,1772102832564,-1264.10075984,0.00012324,2]
[406702239,1772102832600,-1264.10075984,0.00012324,2]
[406702240,1772102832634,-1264.10075984,0.00012324,2]
[406702241,1772102832666,-1264.10075984,0.00012324,2]
[406702242,1772102832698,-1264.10075984,0.00012324,2]
[406702243,1772102832730,-1264.10075984,0.00012324,2]
[406702244,1772102832762,-1264.10075984,0.00012324,2]
[406702245,1772102832794,-1264.10075984,0.00012324,2]
[406702246,1772102833059,-1264.10075984,0.00012324,2]
[406702247,1772102833082,-1264.10075984,0.00012324,2]
[406702248,1772102833102,-1264.10075984,0.00012324,2]
[406702249,1772102833122,-1264.10075984,0.00012324,2]
[406702250,1772102833143,-1264.10075984,0.00012324,2]
[406702251,1772102833165,-1264.10075984,0.00012324,2]
[406702252,1772102833188,-1264.10075984,0.00012324,2]
[406702253,1772102833209,-1264.10075984,0.00012324,2]
[406702254,1772102833230,-1264.10075984,0.00012324,2]
[406702255,1772102833251,-1264.10075984,0.00012324,2]
[406702256,1772102833272,-1264.10075984,0.00012324,2]
[406702257,1772102833293,-1264.10075984,0.00012324,2]
[406702258,1772102833315,-1264.10075984,0.00012324,2]
[406702259,1772102833336,-1264.10075984,0.00012324,2]
[406702260,1772102833356,-1264.10075984,0.00012324,2]
[406702261,1772102833379,-1264.10075984,0.00012324,2]
[406702262,1772102833401,-1264.10075984,0.00012324,2]
[406702263,1772102833422,-1264.10075984,0.00012324,2]
[406702264,1772102833445,-1264.10075984,0.00012324,2]
[406702265,1772102833466,-1264.10075984,0.00012324,2]
[406702266,1772102833490,-1264.10075984,0.00012324,2]
[406702267,1772102833515,-1264.10075984,0.00012324,2]
[406702268,1772102833536,-50000.0,0.00012326,2]
[406702269,1772102833556,-500.0,0.00012327,2]
[406702270,1772102833577,-1540.53,0.00012329,2]
[406702271,1772102833598,-1283.77,0.00012329,2]
[406702272,1772102833619,-1069.81,0.00012329,2]
[406702273,1772102833638,-891.51,0.00012329,2]
[406702274,1772102833658,-742.92,0.00012329,2]
[406702275,1772102833678,-619.1,0.00012329,2]
[406702276,1772102833700,-515.92,0.00012329,2]
[406702277,1772102833721,-429.93,0.00012329,2]
[406702278,1772102833740,-281.8311,0.00012486,2]
[406702279,1772102833760,-500.0,0.00012601,2]
[406702280,1772102833781,-500.0,0.00012875,2]
[406702281,1772102833802,-5470.28347615,0.000129,2]
[406702282,1772102833821,-523.20922,0.00013105,2]
[406702283,1772102833844,-500.0,0.00013149,2]
[406702284,1772102833864,-500.0,0.00013273,2]
[406702285,1772102833883,-500.0,0.00013273,2]
[406702286,1772102833902,-500.0,0.00013273,2]
[406702287,1772102833923,-500.0,0.00013273,2]
[406702288,1772102833942,-500.0,0.00013273,2]
[406702289,1772102833963,-500.0,0.00013273,2]
[406702290,1772102833982,-162.90613681,0.00013273,2]
[406702291,1772102834004,-500.0,0.00013273,2]
[406702292,1772102834023,-500.0,0.00013273,2]
[406702293,1772102834044,-534.51934704,0.00013273,2]
[406702294,1772102834064,-500.0,0.00013273,2]
[406702295,1772102834084,-216.28929297,0.00013273,2]
[406702296,1772102834103,-500.0,0.00013273,2]
[406702297,1772102834121,-303.97774806,0.00013273,2]
[406702298,1772102834140,-500.0,0.00013273,2]
[406702299,1772102834160,-301.00658694,0.00013273,2]
[406702300,1772102834178,-1251.70584666,0.000135,2]
[406702301,1772102834202,-300.0,0.00013523,2]
[406702302,1772102834224,-300.0,0.00013523,2]
[406702303,1772102834245,-300.0,0.00013523,2]
[406702304,1772102834266,-300.0,0.00013523,2]
[406702305,1772102834288,-300.0,0.00013523,2]
[406702306,1772102834308,-300.0,0.00013523,2]
[406702307,1772102834329,-300.0,0.00013523,2]
[406702308,1772102834349,-300.0,0.00013523,2]
[406702309,1772102834371,-300.0,0.00013523,2]
[406702310,1772102834392,-300.0,0.00013523,2]
[406702311,1772102834412,-300.0,0.00013523,2]
[406702312,1772102834432,-300.0,0.00013523,2]
[406702313,1772102834453,-300.0,0.00013523,2]
[406702314,1772102834474,-300.0,0.00013523,2]
[406702315,1772102834497,-300.0,0.00013523,2]
[406702316,1772102834522,-420.0,0.00013524,2]
[406702317,1772102834543,-420.0,0.00013524,2]
[406702318,1772102834563,-300.0,0.00013524,2]
[406702319,1772102834585,-1680.0,0.00013556,2]
[406702320,1772102834604,-523.20922,0.00013657,2]
[406702321,1772102834623,-550.22113805,0.00013698,2]
[406702322,1772102834644,-265.80541573,0.00013698,2]
[406702323,1772102834665,-2823.1975929,0.00013699,2]
[406702324,1772102834685,-724.204991,0.00013699,2]
[406702325,1772102834705,-151.0,0.00013699,2]
[406702326,1772102834724,-273.04875006,0.00013699,2]
[406702327,1772102834746,-500.0,0.00013699,2]
[406702328,1772102834765,-158.21933482,0.00013699,2]
[406702329,1772102834789,-276.80485544,0.00013699,2]
[406702330,1772102834809,-500.0,0.00013699,2]
[406702331,1772102834830,-500.0,0.00013699,2]
[406702332,1772102834850,-171.72669464,0.00013699,2]
[406702333,1772102834870,-303.62179514,0.00013699,2]
[406702334,1772102834890,-242.32245964,0.00013699,2]
[406702335,1772102834911,-500.0,0.00013699,2]
[406702336,1772102834932,-500.0,0.00013699,2]
[406702337,1772102834952,-500.0,0.00013699,2]
[406702338,1772102834974,-500.0,0.00013699,2]
[406702339,1772102834993,-500.0,0.00013699,2]
[406702340,1772102835013,-366.18075454,0.00013821,2]
[406702341,1772102835032,-626.24037135,0.00013821,2]
[406702342,1772102835051,-500.0,0.00013821,2]
[406702343,1772102835071,-421.48174133,0.00013821,2]
[406702344,1772102835090,-1000.0,0.00013821,2]
[406702345,1772102835109,-500.0,0.00013821,2]
[406702346,1772102835130,-200.0,0.00014119,2]
[406702347,1772102835153,-1671.01993297,0.00014175,2]
[406702348,1772102835175,-523.20922,0.00014208,2]
[406702349,1772102835200,-291.01003843,0.00014227,2]
[406702350,1772102835222,-500.0,0.00014247,2]
[406702351,1772102835242,-170.1790269,0.00014247,2]
[406702352,1772102835263,-501.95318368,0.00014247,2]
[406702353,1772102835286,-576.30215063,0.00014247,2]
[406702354,1772102835306,-213.44843704,0.00014247,2]
[406702355,1772102835331,-600.0,0.00014361,2]
[406702356,1772102835355,-1500.0,0.00014368,2]
[406702357,1772102835375,-58430.7890847,0.00014497,2]
[406702358,1772102835395,-5470.28347612,0.00014671,2]
[406702359,1772102835415,-523.20922,0.0001476,2]
[406702360,1772102835434,-360.21281534,0.00014823,2]
[406702361,1772102835456,-587.0,0.00014842,2]
[406702362,1772102835475,-180.0,0.00014842,2]
[406702363,1772102835496,-2351.0,0.00014912,2]
[406702364,1772102835521,-1392.15929158,0.00014916,2]
[406702365,1772102835545,-2637.3014585,0.0001502,2]
[406702366,1772102835566,-164.82332933,0.00015212,2]
[406702367,1772102835589,-523.20922,0.00015312,2]
[406702368,1772102835611,-720.0,0.00015798,2]
[406702369,1772102835632,-523.20922,0.00015863,2]
[406702370,1772102835652,-200.0,0.00016112,3]
[406702371,1772102835674,-335.40140022,0.00016227,2]
[406702372,1772102835696,-3292.0,0.00016403,2]
[406702373,1772102835718,-151.0,0.00016403,2]
[406702374,1772102835739,-151.0,0.00016438,2]
[406702375,1772102835759,-151.0,0.00016438,2]
[406702376,1772102835782,-187.609683,0.00016438,2]
[406702377,1772102835967,-5470.28347612,0.00017118,2]
[406702378,1772102835992,-864.0,0.00017377,2]
[406702379,1772102836015,-266.830617,0.00017793,7]
[406702380,1772102836037,-4609.0,0.00018043,2]
[406702381,1772102836059,-379.79276201,0.00018227,2]
[406702382,1772102836079,-200.0,0.00018265,4]
[406702383,1772102836100,-51793.77147156,0.00018694,2]
[406702387,1772102947098,-300.0,0.00012323,2]
[406702388,1772102947126,-300.0,0.00012323,2]
[406702389,1772102947153,-1507.85732304,0.00012324,2]
[406702390,1772102952238,-1000.0,0.00012324,2]
[406702391,1772102953646,-1000.0,0.00012324,2]
[406702392,1772102954024,-1000.0,0.00012324,2]
[406702393,1772102954473,-1000.0,0.00012324,2]
[406702394,1772102954862,-1000.0,0.00012324,2]
[406702395,1772102955283,-1000.0,0.00012324,2]
[406702396,1772102955831,-1000.0,0.00012324,2]
[406702397,1772102955970,-1000.0,0.00012324,2]
[406702398,1772102956522,-1000.0,0.00012324,2]
[406702399,1772102956899,-1000.0,0.00012324,2]
[406702400,1772102959204,-1000.0,0.00012324,2]
[406702401,1772102959273,-1000.0,0.00012324,2]
[406702402,1772102960049,-1000.0,0.00012324,2]
[406702403,1772102960145,-1000.0,0.00012324,2]
[406702404,1772102960346,-1000.0,0.00012324,2]
[406702405,1772102960729,-1000.0,0.00012324,2]
[406702406,1772102961023,-1000.0,0.00012324,2]
[406702407,1772102961335,-1000.0,0.00012324,2]
[406702408,1772102961656,-1000.0,0.00012324,2]
[406702409,1772102962001,-1000.0,0.00012324,2]
[406702410,1772102962331,-1000.0,0.00012324,2]
[406702411,1772102962656,-1000.0,0.00012324,2]
[406702412,1772102963064,-1000.0,0.00012324,2]
[406702413,1772102963536,-1000.0,0.00012324,2]
[406702414,1772102964413,-1000.0,0.00012324,2]
[406702415,1772102964529,-1000.0,0.00012324,2]
[406702416,1772102964837,-1000.0,0.00012324,2]
[406702417,1772102965237,-1000.0,0.00012324,2]
[406702418,1772102965688,-1000.0,0.00012324,2]
[406702419,1772102966124,-1000.0,0.00012324,2]
[406702420,1772102966466,-1000.0,0.00012324,2]
[406702421,1772102966810,-1000.0,0.00012324,2]
[406702422,1772102967224,-1000.0,0.00012324,2]
[406702423,1772102967505,-1000.0,0.00012324,2]
[406702424,1772102967941,-1000.0,0.00012324,2]
[406702425,1772102968384,-1000.0,0.00012324,2]
[406702426,1772102968737,-1000.0,0.00012324,2]
[406702427,1772102969068,-1000.0,0.00012324,2]
[406702428,1772102969482,-1000.0,0.00012324,2]
[406702429,1772102970926,-1000.0,0.00012324,2]
[406702430,1772102972150,-1000.0,0.00012324,2]
[406702431,1772102972555,-1000.0,0.00012324,2]
[406702432,1772102986974,-500.0,0.00012201,2]
[406702433,1772102993594,5000.0,0.00012001,2]
[406702434,1772103001622,2536.71250576,0.00012001,2]
[406702435,1772103008879,-1000.0,0.00012201,2]
[406702436,1772103010838,-1000.0,0.00012201,2]
[406702437,1772103011765,-1000.0,0.00012201,2]
[406702438,1772103012179,-1000.0,0.00012201,2]
[406702439,1772103012735,-500.0,0.00012201,2]
[406702440,1772103012756,-500.0,0.00012201,2]
[406702441,1772103012871,-92.0,0.00012201,2]
[406702442,1772103016597,908.0,0.00012001,2]
[406702443,1772103016621,1000.0,0.00012001,2]
[406702444,1772103016645,1000.0,0.00012001,2]
[406702445,1772103016668,1000.0,0.00012001,2]
[406702446,1772103016690,1000.0,0.00012001,2]
[406702447,1772103016718,92.0,0.00012001,2]
[406702486,1772103031937,-2527.11399478,0.000123,2]
[406702532,1772103042002,-2472.88600522,0.000123,2]
[406702533,1772103042012,-300.0,0.00012323,2]
[406702534,1772103042022,-300.0,0.00012323,2]
[406702535,1772103042033,-300.0,0.00012323,2]
[406702536,1772103042042,-300.0,0.00012323,2]
[406702537,1772103042053,-1200.0,0.00012323,2]
[406702538,1772103042062,-6492.14267696,0.00012324,2]
[406702539,1772103042072,-500.0,0.00012324,2]
[406702540,1772103042080,-500.0,0.00012324,2]
[406702541,1772103042090,-500.0,0.00012324,2]
[406702542,1772103042100,-500.0,0.00012324,2]
[406702543,1772103042109,-500.0,0.00012324,2]
[406702544,1772103042119,-500.0,0.00012324,2]
[406702545,1772103042128,-500.0,0.00012324,2]
[406702546,1772103042138,-500.0,0.00012324,2]
[406702547,1772103042147,-500.0,0.00012324,2]
[406702548,1772103042156,-500.0,0.00012324,2]
[406702549,1772103042165,-500.0,0.00012324,2]
[406702550,1772103042175,-500.0,0.00012324,2]
[406702551,1772103042184,-500.0,0.00012324,2]
[406702552,1772103042193,-500.0,0.00012324,2]
[406702553,1772103042203,-500.0,0.00012324,2]
[406702554,1772103042212,-500.0,0.00012324,2]
[406702555,1772103042223,-500.0,0.00012324,2]
[406702556,1772103042232,-500.0,0.00012324,2]
[406702557,1772103042242,-500.0,0.00012324,2]
[406702558,1772103042251,-500.0,0.00012324,2]
[406702559,1772103042261,-500.0,0.00012324,2]
[406702560,1772103042434,-213.95469508,0.00012324,2]
[406702561,1772103042444,-500.0,0.00012324,2]
[406702562,1772103042455,-500.0,0.00012324,2]
[406702563,1772103042465,-500.0,0.00012324,2]
[406702564,1772103042475,-500.0,0.00012324,2]
[406702565,1772103042485,-500.0,0.00012324,2]
[406702566,1772103042495,-500.0,0.00012324,2]
[406702567,1772103042504,-358.28,0.00012329,2]
[406702568,1772103042514,-300.0,0.00012569,2]
[406702569,1772103042523,-300.0,0.00012569,2]
[406702570,1772103042533,-300.0,0.00012569,2]
[406702571,1772103042542,-300.0,0.00012569,2]
[406702572,1772103042553,-300.0,0.00012569,2]
[406702573,1772103042564,-300.0,0.00012569,2]
[406702574,1772103042575,-300.0,0.00012569,2]
[406702575,1772103042586,-300.0,0.00012569,2]
[406702576,1772103042595,-300.0,0.00012569,2]
[406702577,1772103042608,-300.0,0.00012569,2]
[406702578,1772103042618,-300.0,0.00012569,2]
[406702579,1772103042629,-300.0,0.00012569,2]
[406702580,1772103042640,-300.0,0.00012569,2]
[406702581,1772103042649,-300.0,0.00012569,2]
[406702582,1772103042659,-300.0,0.00012569,2]
[406702583,1772103042669,-600.0,0.00012569,2]
[406702584,1772103042679,-500.0,0.00013273,2]
[406702585,1772103042688,-230.89662837,0.00013273,2]
[406702586,1772103042698,-3418.92717261,0.00013423,2]
[406702587,1772103042707,-420.0,0.00013523,2]
[406702588,1772103042718,-1680.0,0.00013555,2]
[406702590,1772103042728,-626.24037135,0.00013821,2]
[406702592,1772103042739,-720.0,0.00013826,2]
[406702593,1772103042749,-587.0,0.00014841,2]
[406702594,1772103042759,-258.0705537,0.00014851,2]
[406702595,1772103042769,-412.0,0.00014911,2]
[406702596,1772103042779,-864.0,0.00015209,2]
[406702597,1772103042789,-823.0,0.00016287,2]
[406702598,1772103042799,-1000.0,0.0001673,2]
[406702599,1772103042809,-1152.0,0.00017873,2]
[406702600,1772103042818,-1000.0,0.00018403,2]
[406702601,1772103042827,-244.0,0.00018403,2]
[406702602,1772103042837,-500.0,0.00018653,2]
[406702603,1772103042847,-27256.59132324,0.00018694,2]
[406702605,1772103042856,-744.71502317,0.00019243,2]
[406702607,1772103042865,-5684.7582853,0.00019457,2]
[406702608,1772103042875,-1613.0,0.00019614,2]
[406702610,1772103042884,-298.56,0.0001999,3]
[406702612,1772103042893,-895.73,0.0001999,3]
[406702614,1772103042903,-74619.29327446,0.0002,2]
[406702616,1772103042911,-1000.0,0.0002,2]
[406702617,1772103042920,-1000.0,0.0002,2]
[406702618,1772103042930,-18056.82668006,0.0002,2]
[406702619,1772103042939,-3589.66802146,0.0002,2]
[406702620,1772103042948,-151.0,0.0002,2]
[406702621,1772103042957,-151.0,0.0002,2]
[406702622,1772103042965,-4618.87114031,0.0002,2]
[406702623,1772103042976,-151.0,0.00020026,2]
[406702624,1772103042985,-715.0,0.00020065,2]
[406702625,1772103042994,-367.66044922,0.00020067,2]
[406702626,1772103043004,-420.18337053,0.00020107,2]
[406702627,1772103043013,-715.0,0.00020169,2]
[406702628,1772103043023,-424.18412381,0.00020227,2]
[406702629,1772103043032,-1000.0,0.00020243,2]
[406702630,1772103043042,-492.0,0.00020243,2]
[406702631,1772103043051,-443.0,0.000204,120]
[406702632,1772103043059,-266.0,0.000204,120]
[406702633,1772103043068,-159.0,0.000204,120]
[406702634,1772103043077,-1092.47302665,0.00020496,2]
[406702635,1772103043086,-724.204991,0.00020548,2]
[406702637,1772103043095,-151.0,0.00020628,2]
[406702638,1772103043104,-403.0,0.00020705,2]
[406702639,1772103043114,-151.0,0.00020911,2]
[406702640,1772103043122,-150.0,0.00021,2]
[406702641,1772103043131,-5000.0,0.00021,2]
[406702642,1772103043140,-403.0,0.00021025,2]
[406702643,1772103043149,-377.0,0.00021025,2]
[406702644,1772103043158,-17638.5201102,0.00021062,2]
[406702645,1772103043167,-281.6,0.000211,2]
[406702646,1772103043177,-250.0,0.000211,10]
[406702647,1772103043187,-271.87514343,0.00021103,2]
[406702648,1772103043196,-205.52978782,0.00021103,2]
[406702649,1772103043206,-2579.17784983,0.00021103,2]
[406702650,1772103043215,-194.72792766,0.00021103,2]
[406702651,1772103043225,-201.93286099,0.00021103,2]
[406702652,1772103043235,-209.40437684,0.00021103,2]
[406702653,1772103043245,-217.15233878,0.00021103,2]
[406702654,1772103043255,-225.18697532,0.00021103,2]
[406702655,1772103043264,-233.51889341,0.00021103,2]
[406702656,1772103043273,-242.15909246,0.00021103,2]
[406702657,1772103043284,-251.11897888,0.00021103,2]
[406702658,1772103043293,-260.4103811,0.00021103,2]
[406702659,1772103043303,-270.0455652,0.00021103,2]
[406702660,1772103043312,-280.03725112,0.00021103,2]
[406702661,1772103043322,-500.0,0.00021103,2]
[406702662,1772103043331,-290.39862941,0.00021103,2]
[406702663,1772103043340,-500.0,0.00021103,2]
[406702664,1772103043349,-301.1433787,0.00021103,2]
[406702665,1772103043358,-500.0,0.00021103,2]
[406702666,1772103043367,-500.0,0.00021103,2]
[406702667,1772103043376,-500.0,0.00021103,2]
[406702668,1772103043385,-500.0,0.00021103,2]
[406702669,1772103043395,-500.0,0.00021103,2]
[406702670,1772103043406,-500.0,0.00021103,2]
[406702671,1772103043415,-500.0,0.00021103,2]
[406702672,1772103043425,-500.0,0.00021103,2]
[406702673,1772103043435,-500.0,0.00021103,2]
[406702674,1772103043444,-500.0,0.00021103,2]
[406702675,1772103043453,-500.0,0.00021103,2]
[406702676,1772103043463,-500.0,0.00021103,2]
[406702677,1772103043475,-500.0,0.00021103,2]
[406702678,1772103043485,-165.39502439,0.00021103,2]
[406702679,1772103043495,-500.0,0.00021103,2]
[406702680,1772103043504,-316.0330063,0.00021179,2]
[406702681,1772103043515,-568.85941134,0.00021179,2]
[406702683,1772103043524,-643.90056686,0.00021179,2]
[406702685,1772103043533,-1159.02102034,0.00021179,2]
[406702687,1772103043543,-2060.48181394,0.00021179,2]
[406702689,1772103043552,-3219.50283428,0.00021179,2]
[406702691,1772103043564,-250.0,0.000212,10]
[406702692,1772103043575,-151.0,0.0002123,2]
[406702693,1772103043585,-250.0,0.000213,10]
[406702694,1772103043595,-2903.0,0.00021336,10]
[406702695,1772103043604,-597.12,0.0002136,3]
[406702696,1772103043614,-250.0,0.000214,10]
[406702697,1772103043624,-443.0,0.0002142,120]
[406702698,1772103043634,-266.0,0.0002142,120]
[406702699,1772103043644,-159.0,0.0002142,120]
[406702700,1772103043653,-250.0,0.000215,10]
[406702701,1772103043663,-356.0,0.00021525,2]
[406702702,1772103043672,-3935.6858169,0.0002159,2]
[406702703,1772103043682,-250.0,0.000216,10]
[406702704,1772103043692,-2674.60743027,0.00021651,2]
[406702705,1772103043701,-250.0,0.000217,10]
[406702706,1772103043711,-250.0,0.000218,10]
[406702707,1772103043723,-151.0,0.00021832,2]
[406702708,1772103043732,-150.0,0.00021834,2]
[406702709,1772103043741,-2181.0,0.00021834,2]
[406702710,1772103043751,-1386.0,0.00021834,2]
[406702711,1772103043760,-637.0,0.00021834,2]
[406702712,1772103043770,-150.0,0.00021834,2]
[406702713,1772103043779,-500.0,0.00021849,2]
[406702714,1772103043790,-250.0,0.000219,10]
[406702715,1772103043799,-683.4837,0.00021908,2]
[406702716,1772103043809,-683.4837,0.00021908,2]
[406702717,1772103043818,-683.4837,0.00021908,2]
[406702718,1772103043827,-683.4837,0.00021908,2]
[406702719,1772103043837,-683.4837,0.00021908,2]
[406702720,1772103043846,-2000.0,0.00021917,2]
[406702721,1772103043856,-1027.063376,0.00021918,2]
[406702722,1772103043865,-1027.063376,0.00021918,2]
[406702723,1772103043875,-1027.063376,0.00021918,2]
[406702724,1772103043884,-1027.063376,0.00021918,2]
[406702725,1772103043894,-1027.063376,0.00021918,2]
[406702726,1772103043903,-1027.063376,0.00021918,2]
[406702727,1772103043912,-1027.063376,0.00021918,2]
[406702728,1772103043921,-1027.063376,0.00021918,2]
[406702729,1772103043932,-1027.063376,0.00021918,2]
[406702730,1772103043942,-1027.063376,0.00021918,2]
[406702731,1772103043951,-1027.063376,0.00021918,2]
[406702732,1772103043961,-1027.063376,0.00021918,2]
[406702733,1772103043972,-150.0,0.00021918,2]
[406702734,1772103043981,-150.0,0.00021918,2]
[406702735,1772103043992,-487.0,0.00021918,2]
[406702736,1772103044002,-487.0,0.00021918,2]
[406702737,1772103044011,-663.5,0.00021918,2]
[406702738,1772103044020,-957.0,0.00021996,10]
[406702739,1772103044029,-567.0,0.00021999,2]
[406702740,1772103044038,-1000.0,0.00022,2]
[406702741,1772103044047,-999.999999,0.00022,2]
[406702742,1772103044056,-250.0,0.00022,10]
[406702743,1772103044065,-250.0,0.000221,10]
[406702744,1772103044074,-179.73040439,0.0002218,2]
[406702745,1772103044083,-500.0,0.0002219,2]
[406702746,1772103044092,-2773.56790519,0.00022199,2]
[406702747,1772103044101,-250.0,0.000222,10]
[406702748,1772103044110,-468.5754856,0.00022227,2]
[406702749,1772103044120,-1000.0,0.00022267,10]
[406702750,1772103044129,-791.0,0.00022267,10]
[406702751,1772103044138,-151.0,0.00022434,2]
[406702752,1772103044147,-300.0,0.00022466,2]
[406702753,1772103044156,-200.0,0.00022466,2]
[406702754,1772103044165,-443.0,0.00022491,120]
[406702755,1772103044175,-266.0,0.00022491,120]
[406702756,1772103044184,-159.0,0.00022491,120]
[406702757,1772103044194,-2876.18991768,0.00022747,2]
[406702758,1772103044204,-1268.4410266,0.00022899,2]
[406702759,1772103044213,-715.0,0.00022981,3]
[406702760,1772103044223,-450.0,0.00023014,2]
[406702761,1772103044232,-315.37820353,0.00023014,2]
[406702762,1772103044241,-151.0,0.00023036,2]
[406702763,1772103044251,-151.0,0.00023124,2]
[406702764,1772103044260,-1027.063376,0.00023124,2]
[406702765,1772103044269,-1027.063376,0.00023124,2]
[406702766,1772103044278,-1027.063376,0.00023124,2]
[406702767,1772103044287,-1027.063376,0.00023124,2]
[406702768,1772103044297,-2982.60894464,0.00023295,2]
[406702769,1772103044305,-526.00254533,0.00023457,2]
[406702770,1772103044315,-600.0,0.00023562,2]
[406702771,1772103044323,-443.0,0.00023616,120]
[406702772,1772103044333,-266.0,0.00023616,120]
[406702773,1772103044341,-159.0,0.00023616,120]
[406702774,1772103044351,-151.0,0.00023638,2]
[406702775,1772103044361,-283.0274494,0.00023666,2]
[406702776,1772103044370,-381.53,0.00023686,2]
[406702777,1772103044379,-403.0,0.00023711,3]
[406702778,1772103044388,-403.0,0.00023711,3]
[406702779,1772103044397,-2440.60371162,0.0002376,2]
[406702780,1772103044407,-3262.36991528,0.0002376,2]
[406702781,1772103044416,-254.35,0.00023782,2]
[406702782,1772103044425,-186.781432,0.0002384,30]
[406702783,1772103044434,-3092.96547559,0.00023843,2]
[406702784,1772103044444,-500.0,0.00023895,2]
[406702785,1772103044453,-24781.75112622,0.00023919,7]
[406702786,1772103044463,-151.0,0.00023919,2]
[406702787,1772103044473,-500.0,0.00023983,2]
[406702788,1772103044482,-35048.30816084,0.00024,2]
[406702789,1772103045209,-61994.31558954,0.00024,2]
[406702790,1772103045221,-1893.17710231,0.00024,2]
[406702791,1772103045233,-2569.84507078,0.00024,2]
[406702792,1772103045254,-20037.22637915,0.00024,2]
[406702793,1772103045877,-1250.2618448,0.00012177,2]
[406702794,1772103045887,-500.0,0.00021103,2]
[406702795,1772103045897,-500.0,0.00021103,2]
[406702796,1772103045907,-500.0,0.00021103,2]
[406702797,1772103045917,-39944.22723488,0.00024,2]
[406702798,1772103045943,-7127.62076322,0.00024,2]
[406702799,1772103047777,-4926.09068076,0.00024,2]
[406702800,1772103047793,-500.60659941,0.00024,2]
[406702801,1772103048144,-1995.539736,0.00024,2]
[406702802,1772103163054,167.99,0.00012,2]
[406702803,1772103189735,872.57,0.00012,10]
[406702804,1772103290495,-1000.0,0.00012177,2]
[406702805,1772103292105,-1000.0,0.00012177,2]
[406702806,1772103293279,-1000.0,0.00012177,2]
[406702807,1772103294358,-1000.0,0.00012177,2]
[406702808,1772103295465,-323.5407682,0.00012177,2]
[406702809,1772103295485,-200.72991164,0.000122,2]
[406702810,1772103322654,-1000.0,0.00012177,2]
[406702811,1772103324911,2184.55939436,0.00012001,2]
[406702812,1772103328211,-531.26142579,0.00012177,2]
[406702831,1772103423704,6255.1479071,0.00011581,2]
[406702832,1772103435347,-279.99,0.000123,2]
[406702833,1772103510717,18229.6224008,0.00011644,2]
[406702834,1772103524486,484.8124469,0.00011737,2]